bitfinex-derivatives/quotes_ETHF0:USTF0_20250112
["timestamp","ask_amount","ask_price","bid_price","bid_amount"]
[1736722516918,0.6788,3243.2,3243.1,0.21596]
[1736722517618,0.6788,3243.2,3243.0,0.21596]
[1736722518424,0.6788,3243.2,3243.1,0.21596]
[1736722529635,0.6788,3243.2,3242.9,3.2078]
[1736722529636,0.21596,3243.0,3242.9,3.2078]
[1736722529831,0.6788,3243.2,3242.9,3.2078]
[1736722530029,0.89475,3243.2,3243.0,0.21596]
[1736722530534,0.6788,3243.2,3243.0,0.21596]
[1736722530735,0.89475,3243.2,3243.0,0.21596]
[1736722534141,0.89475,3243.2,3243.1,0.21596]
[1736722537451,0.6788,3243.2,3243.1,0.21596]
[1736722541547,0.89475,3243.2,3243.1,0.21596]
[1736722541746,0.6788,3243.2,3242.8,1.259]
[1736722542647,0.6788,3243.2,3242.7,3.2078]
[1736722542844,0.21598,3242.8,3242.7,3.2078]
[1736722543950,0.21598,3242.8,3242.7,3.42378]
[1736722544279,0.21598,3242.8,3242.7,2.1761]
[1736722544448,0.21598,3242.8,3241.8,0.21604]
[1736722544449,0.21603,3242.0,3241.8,0.21604]
[1736722544644,0.21604,3241.9,3241.7,0.21605]
[1736722544943,0.87034,3241.9,3241.7,0.21605]
[1736722545344,0.6543,3241.9,3241.2,3.2078]
[1736722545743,3.2078,3241.5,3241.1,1.259]
[1736722545943,0.2161,3241.1,3240.7,3.42391]
[1736722546139,0.6543,3241.0,3240.7,3.2078]
[1736722546344,0.6543,3241.0,3240.7,3.42391]
[1736722546345,0.8704,3241.0,3240.7,3.42391]
[1736722547251,0.6543,3241.0,3240.7,3.2078]
[1736722547450,0.6785,3240.9,3240.7,3.42392]
[1736722548946,0.6785,3240.9,3240.7,0.21612]
[1736722549148,0.6785,3240.9,3240.6,0.21612]
[1736722549344,0.6785,3240.9,3240.5,0.21613]
[1736722549653,0.6785,3240.9,3240.7,0.21612]
[1736722550151,0.89461,3240.9,3240.6,0.21612]
[1736722550552,3.2078,3240.7,3240.0,0.21616]
[1736722550751,0.21615,3240.2,3239.9,0.21617]
[1736722551051,0.6485,3240.1,3239.9,0.21617]
[1736722552450,0.6485,3240.1,3240.0,0.21616]
[1736722553053,0.6485,3240.1,3239.9,0.21617]
[1736722553250,0.6485,3240.1,3239.8,0.21618]
[1736722553457,0.6485,3240.1,3240.0,0.21616]
[1736722555263,0.6485,3240.1,3239.7,1.0]
[1736722555458,0.21618,3239.8,3239.7,1.0]
[1736722556661,0.21617,3239.9,3239.7,1.0]
[1736722557254,3.48583039,3240.1,3239.7,1.0]
[1736722557561,0.21617,3239.9,3239.7,1.0]
[1736722557756,0.21617,3239.9,3239.7,1.21618]
[1736722557963,0.21617,3239.9,3239.7,1.0]
[1736722558360,0.21617,3239.9,3239.7,1.21618]
[1736722559157,0.21617,3239.9,3239.7,1.0]
[1736722559363,0.21617,3239.9,3239.7,1.21618]
[1736722560465,3.48583039,3240.1,3239.7,1.21618]
[1736722560662,0.21617,3239.9,3239.7,1.21618]
[1736722564762,0.21618,3239.8,3239.7,1.21618]
[1736722564963,3.42397,3239.9,3239.7,1.21618]
[1736722565368,3.2078,3239.9,3239.8,0.21618]
[1736722565562,3.2078,3239.9,3239.8,0.83628]
[1736722566563,3.2078,3241.1,3239.8,9.4653]
[1736722566770,3.2078,3241.1,3241.0,0.2161]
[1736722567069,3.2078,3241.1,3240.9,0.2161]
[1736722567070,0.21609,3241.1,3240.9,0.2161]
[1736722567662,4.09863039,3241.3,3240.9,0.2161]
[1736722567663,0.2161,3241.0,3240.9,0.2161]
[1736722569965,3.2078,3241.1,3240.9,0.2161]
[1736722570269,0.2161,3241.0,3240.9,0.2161]
[1736722571068,4.09863039,3241.3,3240.8,0.2161]
[1736722571570,4.09863039,3241.3,3240.5,1.2775]
[1736722571868,0.21609,3241.1,3240.9,0.2161]
[1736722572065,4.09863039,3241.3,3240.5,1.2775]
[1736722572265,0.2161,3241.0,3240.8,0.21611]
[1736722572463,0.2161,3241.0,3240.6,0.21612]
[1736722572673,0.2161,3241.0,3240.9,0.2161]
[1736722572869,4.09863039,3241.3,3240.5,1.2775]
[1736722573265,0.2161,3241.0,3240.9,0.2161]
[1736722573864,0.2161,3241.0,3240.8,0.21611]
[1736722578568,0.2161,3241.0,3240.5,1.2775]
[1736722578773,0.2161,3241.0,3240.9,0.2161]
[1736722579371,3.2078,3241.2,3240.9,0.2161]
[1736722579675,0.2161,3241.0,3240.6,0.21612]
[1736722579877,0.2161,3241.0,3240.8,0.2161]
[1736722580377,3.2078,3241.2,3240.5,1.2775]
[1736722580572,0.21609,3241.1,3240.9,0.2161]
[1736722580772,3.42389,3241.2,3241.0,0.2161]
[1736722581681,3.42389,3241.2,3241.1,0.21609]
[1736722581978,3.2078,3241.2,3240.5,1.2775]
[1736722582375,0.2161,3241.0,3240.6,0.21612]
[1736722582575,0.2161,3241.0,3240.8,0.21611]
[1736722582783,0.2161,3241.0,3240.9,0.2161]
[1736722583479,0.21611,3240.9,3240.8,0.21611]
[1736722585676,0.21614,3240.5,3240.3,0.21614]
[1736722585875,0.6456,3240.4,3240.3,0.21614]
[1736722586077,0.6456,3240.4,3240.2,3.2078]
[1736722586078,0.21616,3240.1,3239.9,0.21617]
[1736722586576,0.21616,3240.1,3239.7,1.0]
[1736722586577,1.2994,3240.3,3239.8,0.21618]
[1736722586774,0.21617,3239.9,3239.8,0.21618]
[1736722586973,0.21618,3239.8,3239.7,1.0]
[1736722589185,0.21618,3239.8,3239.7,1.21618]
[1736722589881,0.21618,3239.8,3239.7,1.0]
[1736722591482,0.21618,3239.8,3239.7,1.21618]
[1736722591872,0.21617,3239.9,3239.7,1.21618]
[1736722592074,3.2078,3240.0,3239.7,1.0]
[1736722592274,3.2078,3240.0,3239.7,1.21618]
[1736722592470,3.42397,3240.0,3239.8,0.21617]
[1736722592684,0.21617,3239.9,3239.8,0.21617]
[1736722592982,0.21617,3239.9,3239.7,1.21618]
[1736722593179,3.42397,3240.0,3239.9,0.21617]
[1736722593384,1.2994,3240.3,3240.2,0.21615]
[1736722597386,1.51554,3240.3,3240.2,0.21615]
[1736722597585,0.6456,3240.4,3239.9,0.6386]
[1736722597891,0.21615,3240.3,3240.1,0.21615]
[1736722598184,0.6339,3240.2,3240.1,0.21615]
[1736722599190,0.6456,3240.4,3240.3,0.21614]
[1736722599985,0.86174,3240.4,3240.3,0.21614]
[1736722600791,0.6456,3240.4,3240.3,0.21614]
[1736722601690,0.86174,3240.4,3240.3,0.21614]
[1736722604591,0.6456,3240.4,3239.9,0.6792]
[1736722604787,0.86174,3240.4,3240.3,0.21614]
[1736722605094,0.21614,3240.3,3240.2,0.21615]
[1736722605491,0.21615,3240.2,3240.1,0.21615]
[1736722605693,0.21616,3240.1,3240.0,0.21616]
[1736722605893,0.89616,3240.1,3240.0,0.21616]
[1736722607399,0.21618,3239.9,3239.7,1.21618]
[1736722607703,0.84248,3239.8,3239.7,1.21618]
[1736722608494,0.6263,3239.8,3239.7,1.21618]
[1736722610493,0.84248,3239.8,3239.7,1.21618]
[1736722610794,0.6263,3239.8,3239.7,1.21618]
[1736722630703,0.68,3240.1,3239.7,4.2078]
[1736722631004,0.68,3240.1,3240.0,0.21616]
[1736722633712,1.03005042,3240.2,3240.1,0.21616]
[1736722635011,0.6456,3240.4,3240.3,0.21614]
[1736722646320,1.03005042,3240.7,3240.6,0.21612]
[1736722646823,0.7117,3240.8,3240.7,0.21612]
[1736722647910,0.92781,3240.8,3240.7,0.21612]
[1736722648507,0.7117,3240.8,3240.7,0.21612]
[1736722649512,1.03005042,3241.0,3240.9,0.2161]
[1736722658022,3.2078,3241.0,3240.7,0.21611]
[1736722658213,1.24616042,3240.8,3240.6,0.21612]
[1736722658623,0.7207,3240.7,3240.6,0.21612]
[1736722669029,0.7207,3240.7,3240.3,1.256]
[1736722669332,1.4337,3240.6,3240.5,0.21613]
[1736722681630,1.4337,3240.6,3240.5,0.94843]
[1736722688436,4.43789005,3241.4,3240.5,0.7323]
[1736722688643,0.7181,3240.9,3240.8,0.21611]
[1736722692146,0.7181,3240.9,3240.8,3.42391]
[1736722693950,0.7181,3240.9,3240.8,0.21611]
[1736722694154,0.7181,3240.9,3240.8,3.42391]
[1736722694937,0.7181,3240.9,3240.8,4.45396042]
[1736722695137,0.7181,3240.9,3240.8,1.24616042]
[1736722695347,0.7181,3240.9,3240.8,0.21611]
[1736722696245,0.21612,3240.6,3240.5,4.8385309]
[1736722696454,4.23785042,3240.6,3240.3,7.27231496]
[1736722696654,1.03005042,3240.4,3240.1,9.696722]
[1736722696844,4.45400042,3240.2,3240.1,9.696722]
[1736722697147,4.45400042,3240.2,3240.1,8.537222]
[1736722697748,4.45400042,3240.2,3239.7,1.0]
[1736722697749,0.21618,3239.8,3239.7,1.0]
[1736722698547,1.24623042,3239.8,3239.7,1.0]
[1736722702650,7.29213747,3239.8,3239.7,1.0]
[1736722705353,1.24623042,3239.8,3239.7,1.0]
[1736722706450,6.0836424,3239.8,3239.7,1.0]
[1736722710948,1.24623042,3239.8,3239.7,1.0]
[1736722718761,6.0836424,3239.8,3239.7,1.0]
[1736722723359,1.24623042,3239.8,3239.7,1.0]
[1736722727657,1.24623042,3239.8,3239.7,1.7104]
[1736722730163,1.24623042,3239.8,3239.7,1.0]
[1736722730355,6.24623042,3239.8,3239.7,1.0]
[1736722730556,7.23873175,3239.8,3239.7,1.0]
[1736722731564,7.69742364,3239.8,3239.7,1.0]
[1736722731957,7.69742364,3239.8,3238.9,1.4177]
[1736722731958,0.21623,3239.0,3238.9,1.4177]
[1736722732264,4.45408042,3239.0,3238.9,1.4177]
[1736722734764,5.48413084,3239.0,3238.9,0.6995]
[1736722734959,11.52185156,3239.0,3238.9,0.6995]
[1736722735963,5.48413084,3239.0,3238.9,0.6995]
[1736722736560,0.21625,3238.7,3238.6,0.6833]
[1736722739266,1.24630042,3238.7,3238.6,0.6833]
[1736722739465,1.24630042,3238.7,3238.5,0.6925]
[1736722739466,0.21626,3238.6,3238.5,0.6925]
[1736722739666,3.42406,3238.6,3238.5,0.6925]
[1736722741572,9.46170117,3238.6,3238.5,0.6925]
[1736722742370,9.24544117,3238.6,3238.5,0.90876]
[1736722742565,4.93874117,3238.6,3238.5,4.11656]
[1736722742771,1.64204117,3238.6,3238.5,4.11656]
[1736722742967,7.48625038,3239.1,3238.5,3.9003]
[1736722742968,1.03005042,3239.0,3238.5,3.9003]
[1736722743160,1.03005042,3239.0,3238.9,0.21624]
[1736722743466,7.27002038,3239.1,3239.0,0.21623]
[1736722744063,4.83582678,3239.1,3239.0,0.21623]
[1736722745467,0.21622,3239.1,3239.0,0.21623]
[1736722746171,0.21622,3239.2,3239.0,0.21623]
[1736722746468,0.21622,3239.2,3239.1,0.667]
[1736722746669,0.21622,3239.2,3239.1,1.3431]
[1736722747670,2.17709928,3239.5,3239.1,1.3431]
[1736722747870,0.21621,3239.4,3239.3,0.21621]
[1736722748171,0.21621,3239.4,3239.2,0.21621]
[1736722748671,0.21621,3239.4,3239.1,1.3431]
[1736722748863,2.17709928,3239.5,3239.1,1.3431]
[1736722749065,0.21622,3239.2,3239.1,1.3431]
[1736722749267,0.21625,3238.7,3238.6,0.21625]
[1736722749468,0.21625,3238.7,3238.6,0.91335]
[1736722750274,0.21625,3238.7,3238.6,0.6971]
[1736722750474,0.21625,3238.7,3238.6,1.58726]
[1736722750968,0.21626,3238.6,3238.5,3.2078]
[1736722751165,2.17709928,3238.6,3238.1,1.0]
[1736722751473,0.21628,3238.3,3238.1,1.21628]
[1736722751674,0.21628,3238.3,3238.2,0.21628]
[1736722752877,2.17709928,3238.6,3238.2,0.21628]
[1736722753072,0.21627,3238.4,3238.3,0.21628]
[1736722753277,5.38489928,3238.9,3238.1,1.0]
[1736722753576,0.21627,3238.5,3238.4,0.21627]
[1736722755075,0.21626,3238.6,3238.4,0.21627]
[1736722755377,0.21626,3238.6,3238.5,1.3539]
[1736722755775,0.21625,3238.7,3238.6,0.21625]
[1736722755979,5.38489928,3238.9,3238.7,0.21625]
[1736722755980,0.21625,3238.8,3238.7,0.21625]
[1736722757080,0.21624,3238.8,3238.5,1.3539]
[1736722757377,0.21624,3238.8,3238.7,0.21625]
[1736722758074,5.38489928,3238.9,3238.5,1.3539]
[1736722758476,0.21625,3238.8,3238.6,0.21625]
[1736722759278,0.21625,3238.8,3238.7,0.21625]
[1736722760582,0.21625,3238.8,3238.6,0.21625]
[1736722760784,0.21625,3238.8,3238.7,0.21625]
[1736722760979,8.28604109,3239.3,3238.9,0.21623]
[1736722761184,0.21622,3239.2,3239.0,0.21623]
[1736722761391,0.21622,3239.2,3239.1,1.4437]
[1736722761890,0.21622,3239.2,3239.1,1.65992]
[1736722762088,9.44711966,3239.3,3239.1,1.4437]
[1736722762286,0.21622,3239.2,3239.1,1.65992]
[1736722762593,0.21622,3239.2,3239.1,1.4437]
[1736722763587,2.0953,3239.4,3239.1,1.4437]
[1736722763792,6.2545604,3239.3,3239.2,0.21622]
[1736722764294,6.0383504,3239.3,3239.2,0.21622]
[1736722766084,0.21619,3239.6,3239.5,0.2162]
[1736722766489,9.2461504,3239.7,3239.6,0.21619]
[1736722767394,3.2078,3239.7,3239.6,0.21619]
[1736722770398,6.0383504,3239.9,3239.3,0.7261]
[1736722770399,6.0383504,3239.9,3239.8,0.21618]
[1736722770799,6.0383504,3240.0,3239.9,0.21617]
[1736722772001,3.2078,3240.1,3240.0,0.21616]
[1736722772189,6.0383504,3240.4,3240.3,0.21614]
[1736722772996,2.0709,3240.5,3239.9,3.8865]
[1736722772997,2.28703,3240.5,3240.4,0.21614]
[1736722773298,0.92703,3240.5,3240.4,0.21614]
[1736722773701,0.7109,3240.5,3240.4,0.21614]
[1736722773897,6.0383504,3240.7,3239.9,3.8865]
[1736722774098,6.0383504,3240.7,3240.6,0.21612]
[1736722774302,6.2544704,3240.7,3240.6,0.21612]
[1736722774496,6.0383504,3240.7,3240.6,0.21612]
[1736722775405,1.3539,3240.8,3240.4,0.702]
[1736722775604,1.3539,3240.8,3240.7,0.21612]
[1736722775904,1.57001,3240.8,3240.7,0.21612]
[1736722776397,1.3539,3240.8,3240.7,0.21612]
[1736722780902,1.3539,3240.8,3240.7,3.42392]
[1736722781106,0.666,3240.9,3240.8,0.21611]
[1736722782799,0.666,3240.9,3240.8,0.89271]
[1736722783405,1.4231,3241.2,3241.1,0.21609]
[1736722783611,2.1422,3241.2,3241.1,0.21609]
[1736722784307,2.35828,3241.2,3241.1,0.21609]
[1736722784509,2.1422,3241.2,3241.1,0.21609]
[1736722787807,3.2078,3241.6,3240.8,0.6766]
[1736722788104,0.6799,3241.5,3241.4,0.21607]
[1736722788309,3.2078,3241.6,3241.5,0.21606]
[1736722792407,0.6799,3241.7,3241.3,0.7266]
[1736722792606,0.6799,3241.7,3241.6,0.21606]
[1736722793812,1.4203,3241.9,3241.8,0.21604]
[1736722794006,0.706,3241.9,3241.8,0.21604]
[1736722794213,3.2078,3242.0,3241.6,2.17709928]
[1736722794408,3.2078,3242.0,3241.9,0.21604]
[1736722797310,0.7098,3242.1,3241.6,2.17709928]
[1736722797613,0.7098,3242.1,3242.0,0.21603]
[1736722798012,0.92582,3242.1,3242.0,0.21603]
[1736722798320,0.7098,3242.1,3242.0,0.21603]
[1736722799013,0.7098,3242.1,3242.0,3.42383]
[1736722800115,0.7098,3242.1,3242.0,0.21603]
[1736722800314,3.2078,3242.7,3242.0,2.17709928]
[1736722800515,2.14,3242.8,3242.5,0.216]
[1736722800717,2.14,3242.8,3242.3,2.17709928]
[1736722800718,2.14,3242.8,3242.3,5.38489928]
[1736722800921,6.0383504,3243.6,3242.7,3.2078]
[1736722801117,1.4137,3243.5,3242.8,0.21597]
[1736722801316,5.3213,3243.5,3242.5,2.17709928]
[1736722801618,2.17709928,3243.0,3242.3,3.2078]
[1736722801815,5.38489928,3242.7,3241.7,3.2078]
[1736722802008,2.17709928,3242.4,3241.7,3.2078]
[1736722802207,1.4137,3242.3,3241.8,2.17709928]
[1736722802608,1.4137,3242.3,3241.9,3.2078]
[1736722802812,1.4137,3242.3,3241.6,1.79213]
[1736722802813,0.6998,3242.2,3242.1,0.21602]
[1736722803010,0.6998,3242.2,3242.1,2.39311928]
[1736722803217,0.6998,3242.2,3242.1,0.21602]
[1736722803414,0.21603,3242.1,3241.8,3.2078]
[1736722803617,0.6998,3242.2,3241.8,3.2078]
[1736722803915,0.6998,3242.2,3242.1,0.21602]
[1736722804421,0.6998,3242.2,3242.0,0.6857]
[1736722804726,0.21603,3242.0,3241.6,2.39314928]
[1736722805014,0.6998,3242.2,3241.3,0.21607]
[1736722805015,0.21605,3241.7,3241.3,0.21607]
[1736722805221,1.433,3241.6,3241.2,1.3912]
[1736722805719,1.433,3241.6,3241.3,0.21607]
[1736722805921,1.433,3241.6,3241.2,1.3912]
[1736722805922,0.6608,3241.5,3241.4,0.21607]
[1736722807013,0.6608,3241.5,3240.2,3.74818]
[1736722807221,0.6608,3241.5,3240.5,0.21613]
[1736722807222,0.21611,3240.9,3240.5,0.21613]
[1736722807518,0.6608,3241.5,3240.5,1.252]
[1736722807723,1.3968,3241.4,3241.1,0.21609]
[1736722807924,1.61287,3241.4,3241.0,0.21609]
[1736722808118,3.2078,3241.3,3240.6,3.9296]
[1736722808325,3.57389928,3241.4,3240.5,3.2078]
[1736722808521,1.3968,3241.4,3240.6,0.7218]
[1736722808924,0.21609,3241.1,3240.6,0.7218]
[1736722809114,1.3968,3241.4,3241.1,0.21609]
[1736722809322,1.3968,3241.4,3240.6,0.7218]
[1736722809323,1.3968,3241.4,3241.3,0.21608]
[1736722809527,0.45491825,3242.1,3241.3,3.2078]
[1736722809717,0.45491825,3242.1,3241.9,0.21604]
[1736722809718,1.417,3242.0,3241.9,0.21604]
[1736722809922,6.0383504,3242.2,3241.7,5.92502928]
[1736722810134,6.0383504,3242.2,3242.1,5.60091928]
[1736722810323,6.0383504,3242.2,3242.1,6.85291928]
[1736722810522,3.5303504,3242.2,3242.1,11.85291928]
[1736722810923,7.27002038,3243.0,3242.1,11.63689928]
[1736722811120,0.6684,3243.2,3242.9,3.2078]
[1736722811319,0.6684,3243.2,3243.1,0.21596]
[1736722811523,0.6684,3243.2,3242.9,3.2078]
[1736722811730,0.88376,3243.1,3242.9,3.2078]
[1736722812030,0.21596,3243.0,3242.7,3.64507928]
[1736722812225,0.7123,3242.9,3242.5,3.2078]
[1736722812531,0.7123,3242.9,3242.2,2.17709928]
[1736722812827,0.21599,3242.7,3242.4,0.216]
[1736722813221,0.7123,3242.9,3242.2,2.17709928]
[1736722813531,0.21598,3242.8,3242.4,0.216]
[1736722813928,0.7123,3242.9,3242.4,3.2078]
[1736722814128,0.7123,3242.9,3242.8,0.21598]
[1736722814434,0.6678,3243.1,3243.0,0.21596]
[1736722815927,0.6678,3243.1,3242.8,5.38489928]
[1736722816128,0.6678,3243.1,3243.0,0.21596]
[1736722820332,0.6678,3243.1,3242.8,5.60086928]
[1736722820639,0.6678,3243.1,3243.0,0.21596]
[1736722824037,0.6678,3243.1,3242.8,5.38489928]
[1736722824333,0.6678,3243.1,3243.0,0.21596]
[1736722824836,0.6684,3243.2,3242.8,5.38489928]
[1736722825043,0.6684,3243.2,3243.1,2.39305928]
[1736722825543,0.6684,3243.2,3243.1,2.17709928]
[1736722827543,0.6684,3243.2,3243.1,2.39305928]
[1736722828836,0.88435,3243.2,3243.1,2.17709928]
[1736722829546,0.6684,3243.2,3243.1,2.39305928]
[1736722829839,0.88435,3243.2,3243.1,2.17709928]
[1736722830044,0.6684,3243.2,3243.1,2.39305928]
[1736722830436,0.88435,3243.2,3243.1,2.39305928]
[1736722831142,0.6684,3243.2,3243.1,2.39305928]
[1736722833247,0.6992,3243.4,3243.3,0.21594]
[1736722833441,0.6992,3243.4,3243.3,3.42374]
[1736722834838,0.6992,3243.4,3243.3,0.21594]
[1736722836145,0.6992,3243.4,3243.3,3.42374]
[1736722836648,0.7048,3243.9,3243.8,0.21591]
[1736722836843,0.7048,3243.9,3243.8,5.60080928]
[1736722839453,0.7048,3243.9,3243.8,3.42371]
[1736722842557,3.2078,3244.6,3243.9,0.53976]
[1736722842752,3.2078,3244.6,3244.5,0.21586]
[1736722844649,1.4508,3244.8,3244.6,0.21585]
[1736722845059,1.4508,3244.8,3244.7,0.21585]
[1736722845853,0.2158,3245.5,3244.7,0.53963]
[1736722846052,2.1779,3245.5,3245.4,0.2158]
[1736722846267,2.3937,3245.5,3245.4,0.2158]
[1736722846755,2.1779,3245.5,3245.4,0.2158]
[1736722847065,0.7326,3245.5,3245.4,0.2158]
[1736722847455,0.7326,3245.5,3245.4,3.4236]
[1736722848654,1.3971,3245.8,3245.4,3.2078]
[1736722848860,2.1471,3245.8,3245.6,0.21579]
[1736722849261,2.36288,3245.8,3245.6,0.21579]
[1736722849466,2.1471,3245.8,3245.7,0.21578]
[1736722849667,2.36288,3245.8,3245.6,0.21579]
[1736722849967,2.1471,3245.8,3245.7,0.21578]
[1736722850255,1.4486,3245.8,3245.7,0.21578]
[1736722850656,0.75,3245.8,3245.7,0.21578]
[1736722850858,3.2078,3246.1,3245.6,0.7681]
[1736722851056,0.21575,3246.2,3245.9,0.21577]
[1736722851254,0.21577,3246.0,3245.8,0.21577]
[1736722851450,1.4561,3246.3,3245.6,0.7681]
[1736722851750,1.67185,3246.3,3246.1,0.21575]
[1736722852266,1.4561,3246.3,3245.8,5.38489928]
[1736722852453,1.4561,3246.3,3246.2,0.21575]
[1736722852853,1.4561,3246.3,3245.8,5.38489928]
[1736722852854,3.2078,3246.5,3246.1,2.17709928]
[1736722853060,3.2078,3246.5,3245.8,3.2078]
[1736722853061,3.42351,3246.9,3246.4,2.17709928]
[1736722853260,3.42351,3246.9,3246.7,0.21571]
[1736722853571,3.42351,3246.9,3246.4,2.17709928]
[1736722853572,0.21571,3246.8,3246.6,0.21572]
[1736722853866,0.21571,3246.8,3246.4,2.17709928]
[1736722853867,3.42351,3246.9,3246.4,2.17709928]
[1736722854062,0.2157,3247.0,3246.8,0.21571]
[1736722854262,0.21571,3246.9,3246.6,0.21572]
[1736722854661,2.1256,3247.1,3246.5,0.7385]
[1736722855265,2.1256,3247.1,3246.7,2.17709928]
[1736722855658,0.2157,3247.0,3246.8,0.21571]
[1736722856160,2.1256,3247.1,3246.7,2.17709928]
[1736722856559,2.1256,3247.1,3246.9,0.2157]
[1736722856762,0.2157,3247.0,3246.7,2.39280928]
[1736722856964,2.1256,3247.1,3246.7,2.17709928]
[1736722857159,2.1256,3247.1,3246.9,0.2157]
[1736722857361,0.2157,3247.0,3246.8,0.21571]
[1736722857559,2.1256,3247.1,3246.8,0.21571]
[1736722857856,2.34129,3247.1,3246.8,0.21571]
[1736722858058,2.34129,3247.1,3246.7,2.17709928]
[1736722858262,2.1256,3247.1,3246.7,2.17709928]
[1736722858470,0.2157,3247.0,3246.8,0.21571]
[1736722858660,2.1256,3247.1,3246.7,2.17709928]
[1736722858964,0.2157,3247.0,3246.8,0.21571]
[1736722859267,2.1256,3247.1,3247.0,0.2157]
[1736722859461,2.1256,3247.1,3247.0,2.39279928]
[1736722860573,3.2078,3247.9,3247.0,5.38489928]
[1736722860771,0.21565,3247.7,3247.5,2.39275928]
[1736722861068,2.1829,3247.8,3247.5,2.39275928]
[1736722861069,2.39855,3247.8,3247.5,2.39275928]
[1736722861565,0.21565,3247.7,3247.5,2.39275928]
[1736722861767,2.1829,3247.8,3247.5,2.39275928]
[1736722861962,2.1829,3247.8,3247.5,2.17709928]
[1736722862273,0.21565,3247.7,3247.5,2.39275928]
[1736722862763,0.21566,3247.5,3247.4,3.2078]
[1736722863278,2.1829,3247.8,3247.0,3.2078]
[1736722863471,0.21569,3247.1,3247.0,3.2078]
[1736722864174,3.2078,3247.4,3247.0,3.2078]
[1736722864472,0.21569,3247.1,3247.0,3.2078]
[1736722864967,0.21569,3247.1,3246.9,2.17709928]
[1736722865170,0.9492,3247.0,3246.9,2.39279928]
[1736722866274,0.9492,3247.0,3246.9,2.17709928]
[1736722866469,0.7335,3247.0,3246.6,2.17709928]
[1736722866673,0.21572,3246.7,3246.6,2.17709928]
[1736722867374,0.21571,3246.8,3246.6,2.39281928]
[1736722867873,1.4573,3246.9,3246.6,2.17709928]
[1736722868074,0.21571,3246.8,3246.6,2.39281928]
[1736722869066,0.21572,3246.7,3246.6,2.17709928]
[1736722869472,0.21575,3246.3,3246.1,0.21576]
[1736722869765,0.7212,3246.2,3246.0,2.17709928]
[1736722869976,0.21576,3246.1,3246.0,2.17709928]
[1736722870276,4.6903,3246.2,3245.7,0.7437]
[1736722870577,4.6903,3246.2,3245.6,0.7485]
[1736722870770,4.6903,3246.2,3245.6,0.96429]
[1736722870974,0.21578,3245.8,3245.6,0.96429]
[1736722871472,0.53942,3246.0,3245.4,5.38489928]
[1736722871676,0.2158,3245.5,3245.4,5.38489928]
[1736722871872,0.2158,3245.5,3245.4,2.17709928]
[1736722872074,3.2078,3245.7,3245.1,2.17709928]
[1736722872269,0.2158,3245.5,3245.2,0.21581]
[1736722872672,3.2078,3245.7,3245.2,0.21581]
[1736722873180,0.2158,3245.5,3245.2,0.21581]
[1736722873567,0.2158,3245.5,3245.1,2.17709928]
[1736722873769,0.21579,3245.6,3245.1,2.17709928]
[1736722874073,0.21579,3245.6,3245.3,0.21581]
[1736722874376,0.7272,3246.1,3245.9,0.21577]
[1736722874577,0.7599,3246.9,3246.0,2.17709928]
[1736722874877,0.21572,3246.7,3246.4,0.21573]
[1736722875174,0.21574,3246.5,3246.3,2.39283928]
[1736722875475,2.2485,3246.9,3246.4,0.21573]
[1736722875476,0.21572,3246.7,3246.4,0.21573]
[1736722875778,0.21573,3246.6,3246.3,2.17709928]
[1736722876074,0.21573,3246.5,3246.3,2.39283928]
[1736722876273,2.2485,3246.9,3246.3,2.17709928]
[1736722876573,0.21571,3246.8,3246.6,0.21572]
[1736722876778,2.2485,3246.9,3246.3,5.38489928]
[1736722876974,0.21572,3246.7,3246.4,0.21573]
[1736722877372,0.21572,3246.7,3246.5,0.21573]
[1736722877575,3.2078,3247.0,3246.6,2.17709928]
[1736722877878,3.2078,3247.4,3246.9,2.17709928]
[1736722878080,3.42348,3247.4,3247.1,0.21569]
[1736722878283,0.21568,3247.3,3247.1,0.21569]
[1736722878468,3.2078,3247.4,3247.1,0.21569]
[1736722878469,3.42347,3247.4,3247.1,0.21569]
[1736722879067,3.42347,3247.4,3246.9,2.17709928]
[1736722879068,3.2078,3247.4,3246.9,2.17709928]
[1736722879477,3.2078,3247.4,3247.2,0.21568]
[1736722879670,3.2078,3247.4,3246.9,1.25]
[1736722879877,0.7,3247.7,3247.1,3.2078]
[1736722880180,0.91565,3247.7,3247.4,0.21567]
[1736722880383,0.91565,3247.7,3247.1,3.2078]
[1736722880583,0.91565,3247.7,3247.5,0.21566]
[1736722880782,0.7,3247.7,3247.6,0.21566]
[1736722881083,0.7612,3247.8,3247.6,0.21566]
[1736722881580,0.7612,3247.8,3247.2,2.62447347]
[1736722881581,0.21562,3248.1,3247.4,0.21567]
[1736722881788,1.4252,3248.2,3247.4,0.21567]
[1736722881978,0.21565,3247.8,3247.5,0.21566]
[1736722882178,1.4252,3248.2,3247.2,2.62447347]
[1736722882379,0.21564,3247.9,3247.5,0.21566]
[1736722882579,1.4252,3248.2,3247.5,0.21566]
[1736722882779,0.21567,3247.5,3247.2,0.21568]
[1736722882984,1.4252,3248.2,3247.4,0.21567]
[1736722882985,0.21566,3247.7,3247.4,0.21567]
[1736722883284,1.4252,3248.2,3247.1,3.2078]
[1736722883479,1.4252,3248.2,3247.4,0.21567]
[1736722883683,0.21566,3247.6,3247.4,0.21567]
[1736722883987,0.21563,3248.1,3247.8,0.21564]
[1736722884290,0.21563,3248.1,3247.5,3.2078]
[1736722884291,1.4252,3248.2,3247.5,3.2078]
[1736722884489,0.21563,3248.0,3247.7,0.21565]
[1736722884683,0.21563,3248.0,3247.5,3.2078]
[1736722884988,0.21563,3248.0,3247.8,0.21564]